[Event "Late-Titled-Tuesday-Blitz-May-14-2024"]
[Site "Chess.com"]
[Date "2024.05.14"]
[Round "5"]
[White "joksijoksi"]
[Black "Bastiandash"]
[Result "0-1"]
[WhiteElo "2513"]
[BlackElo "2698"]
[TimeControl "180+1"]
[EndTime "14:57:15 PDT"]
[Termination "Bastiandash won by resignation"]

1. d4 {[%clk 0:02:59.6]} 1... Nf6 {[%clk 0:02:57.1]} 2. c4 {[%clk 0:02:55.6]}
2... e6 {[%clk 0:02:56.8]} 3. Nc3 {[%clk 0:02:54.5]} 3... Bb4 {[%clk 0:02:56.5]}
4. Bd2 {[%clk 0:02:54.7]} 4... b6 {[%clk 0:02:52]} 5. e3 {[%clk 0:02:54.4]} 5...
Bb7 {[%clk 0:02:50.2]} 6. Nf3 {[%clk 0:02:53.6]} 6... O-O {[%clk 0:02:49.1]} 7.
Bd3 {[%clk 0:02:53.5]} 7... d6 {[%clk 0:02:49.1]} 8. O-O {[%clk 0:02:53.1]} 8...
Nbd7 {[%clk 0:02:48.2]} 9. Rc1 {[%clk 0:02:46]} 9... e5 {[%clk 0:02:47.7]} 10.
Bb1 {[%clk 0:02:39.3]} 10... exd4 {[%clk 0:02:42.8]} 11. exd4 {[%clk 0:02:32.3]}
11... Re8 {[%clk 0:02:25.6]} 12. Bg5 {[%clk 0:02:31.4]} 12... h6 {[%clk
0:02:17.9]} 13. Bh4 {[%clk 0:02:27.5]} 13... Qe7 {[%clk 0:01:48.8]} 14. Re1
{[%clk 0:02:14.3]} 14... Qf8 {[%clk 0:01:47.8]} 15. Qd3 {[%clk 0:02:14]} 15...
Bxc3 {[%clk 0:01:39.3]} 16. Qxc3 {[%clk 0:02:08.8]} 16... Be4 {[%clk 0:01:32.8]}
17. Nd2 {[%clk 0:01:58.5]} 17... Bxb1 {[%clk 0:01:29.7]} 18. Rxb1 {[%clk
0:01:59.4]} 18... Rxe1+ {[%clk 0:01:27.6]} 19. Rxe1 {[%clk 0:01:58.8]} 19... Re8
{[%clk 0:01:28.5]} 20. Nf3 {[%clk 0:01:55.6]} 20... Re4 {[%clk 0:01:20.2]} 21.
Rxe4 {[%clk 0:01:50.2]} 21... Nxe4 {[%clk 0:01:21.1]} 22. Qe3 {[%clk 0:01:44.7]}
22... f5 {[%clk 0:01:18.1]} 23. Bg3 {[%clk 0:01:30.3]} 23... Qf7 {[%clk
0:01:12.7]} 24. b3 {[%clk 0:01:23]} 24... g5 {[%clk 0:01:10.4]} 25. h4 {[%clk
0:01:18.5]} 25... Qf6 {[%clk 0:00:56.1]} 26. hxg5 {[%clk 0:01:14.8]} 26... hxg5
{[%clk 0:00:57]} 27. Qd3 {[%clk 0:00:54.2]} 27... Qg6 {[%clk 0:00:30.8]} 28. c5
{[%clk 0:00:46.1]} 28... f4 {[%clk 0:00:27.7]} 29. Nxg5 {[%clk 0:00:38.6]} 29...
Qxg5 {[%clk 0:00:12]} 30. Qxe4 {[%clk 0:00:38.7]} 30... fxg3 {[%clk 0:00:12.1]}
31. fxg3 {[%clk 0:00:38.3]} 31... Nf8 {[%clk 0:00:07.3]} 32. c6 {[%clk
0:00:35.9]} 32... Qf6 {[%clk 0:00:06.4]} 33. d5 {[%clk 0:00:20.5]} 33... Qa1+
{[%clk 0:00:05.5]} 34. Kh2 {[%clk 0:00:20.1]} 34... Qh8+ {[%clk 0:00:06.2]} 35.
Kg1 {[%clk 0:00:20.5]} 35... Qa1+ {[%clk 0:00:07.1]} 36. Kh2 {[%clk 0:00:20.7]}
36... Qf6 {[%clk 0:00:06.9]} 37. Qg4+ {[%clk 0:00:19.1]} 37... Kf7 {[%clk
0:00:06.8]} 38. Qc8 {[%clk 0:00:18.9]} 38... Qh6+ {[%clk 0:00:06.3]} 39. Kg1
{[%clk 0:00:18.7]} 39... Qc1+ {[%clk 0:00:07.2]} 40. Kh2 {[%clk 0:00:19.1]}
40... Qh6+ {[%clk 0:00:07.1]} 41. Kg1 {[%clk 0:00:19.6]} 41... Qe3+ {[%clk
0:00:07.2]} 42. Kh2 {[%clk 0:00:19.5]} 42... Qe7 {[%clk 0:00:07.1]} 43. Qf5+
{[%clk 0:00:17]} 43... Kg7 {[%clk 0:00:07.4]} 44. Qc8 {[%clk 0:00:13.7]} 44...
Ng6 {[%clk 0:00:05.9]} 45. Qd7 {[%clk 0:00:14]} 45... Kf6 {[%clk 0:00:05.3]} 46.
Qc8 {[%clk 0:00:13.4]} 46... Ne5 {[%clk 0:00:04.6]} 47. Qh8+ {[%clk 0:00:12.3]}
47... Qg7 {[%clk 0:00:03.7]} 48. Qd8+ {[%clk 0:00:12.3]} 48... Kf5 {[%clk
0:00:04]} 49. Qc8+ {[%clk 0:00:08.9]} 49... Ke4 {[%clk 0:00:03.9]} 50. Qe6
{[%clk 0:00:05.7]} 50... Kd4 {[%clk 0:00:04.4]} 51. b4 {[%clk 0:00:05.2]} 51...
Ng4+ {[%clk 0:00:04.5]} 52. Kh3 {[%clk 0:00:04.6]} 52... Nf2+ {[%clk 0:00:04]}
53. Kh2 {[%clk 0:00:05.3]} 53... Ne4 {[%clk 0:00:04.9]} 54. g4 {[%clk
0:00:04.7]} 54... Qe5+ {[%clk 0:00:04.4]} 55. Qxe5+ {[%clk 0:00:05.3]} 55...
Kxe5 {[%clk 0:00:05.3]} 56. Kh3 {[%clk 0:00:05.8]} 56... Kxd5 {[%clk 0:00:05.5]}
57. Kh4 {[%clk 0:00:06.5]} 57... Kxc6 {[%clk 0:00:06]} 58. g5 {[%clk 0:00:07.1]}
58... Kd7 {[%clk 0:00:06.5]} 59. g6 {[%clk 0:00:06.6]} 59... Ke7 {[%clk
0:00:06.4]} 60. Kh5 {[%clk 0:00:07.1]} 60... Kf8 {[%clk 0:00:06.9]} 61. Kh6
{[%clk 0:00:07.7]} 61... Kg8 {[%clk 0:00:07.5]} 62. g7 {[%clk 0:00:08.3]} 62...
d5 {[%clk 0:00:08.4]} 63. Kg6 {[%clk 0:00:07.4]} 63... d4 {[%clk 0:00:09.3]} 64.
Kf5 {[%clk 0:00:08.3]} 64... d3 {[%clk 0:00:10.2]} 65. Kxe4 {[%clk 0:00:08.9]}
65... d2 {[%clk 0:00:11.1]} 66. Kd5 {[%clk 0:00:09.8]} 66... d1=Q+ {[%clk
0:00:12]} 67. Kc6 {[%clk 0:00:10.6]} 67... Qa4+ {[%clk 0:00:12.4]} 68. b5 {[%clk
0:00:11.5]} 68... Qc4+ {[%clk 0:00:12.7]} 69. Kb7 {[%clk 0:00:12.4]} 69... Qxb5
{[%clk 0:00:13.2]} 70. a4 {[%clk 0:00:12.9]} 70... Qxa4 {[%clk 0:00:13.7]} 71.
g4 {[%clk 0:00:13.4]} 71... Qxg4 {[%clk 0:00:14.2]} 72. Ka6 {[%clk 0:00:13.4]}
72... c5 {[%clk 0:00:15.1]} 73. Kb5 {[%clk 0:00:14.3]} 73... c4 {[%clk 0:00:16]}
74. Kb4 {[%clk 0:00:14.5]} 74... c3+ {[%clk 0:00:16.9]} 75. Kxc3 {[%clk
0:00:15.4]} 75... a5 {[%clk 0:00:16.5]} 76. Kb2 {[%clk 0:00:16.3]} 76... Qb4+
{[%clk 0:00:16.9]} 77. Ka1 {[%clk 0:00:14.9]} 77... Qd2 {[%clk 0:00:17]} 78. Kb1
{[%clk 0:00:14.6]} 78... a4 {[%clk 0:00:17.9]} 0-1

[Event "Late-Titled-Tuesday-Blitz-May-14-2024"]
[Site "Chess.com"]
[Date "2024.05.14"]
[Round "5"]
[White "Kombinator01"]
[Black "imdvb6307"]
[Result "1/2-1/2"]
[WhiteElo "2374"]
[BlackElo "2525"]
[TimeControl "180+1"]
[EndTime "14:57:19 PDT"]
[Termination "Game drawn by stalemate"]

1. Nc3 {[%clk 0:02:48.6]} 1... d6 {[%clk 0:02:51]} 2. g3 {[%clk 0:02:38.1]} 2...
f5 {[%clk 0:02:49.8]} 3. Bg2 {[%clk 0:02:38.1]} 3... e5 {[%clk 0:02:50]} 4. d3
{[%clk 0:02:36.8]} 4... Nf6 {[%clk 0:02:49.9]} 5. Nf3 {[%clk 0:02:33.7]} 5...
Be7 {[%clk 0:02:48.7]} 6. O-O {[%clk 0:02:34]} 6... O-O {[%clk 0:02:48.6]} 7. h3
{[%clk 0:02:30.8]} 7... c6 {[%clk 0:02:46.2]} 8. Kh2 {[%clk 0:02:30.2]} 8... Qe8
{[%clk 0:02:45.2]} 9. e4 {[%clk 0:02:24.8]} 9... fxe4 {[%clk 0:02:42.6]} 10.
dxe4 {[%clk 0:02:21.7]} 10... Na6 {[%clk 0:02:42.4]} 11. Be3 {[%clk 0:02:20.2]}
11... Qh5 {[%clk 0:02:32.5]} 12. Nh4 {[%clk 0:02:15.7]} 12... Qxd1 {[%clk
0:01:52.2]} 13. Raxd1 {[%clk 0:02:10.1]} 13... g6 {[%clk 0:01:52.1]} 14. f4
{[%clk 0:01:57.8]} 14... Nh5 {[%clk 0:01:51.6]} 15. fxe5 {[%clk 0:01:53.1]}
15... Rxf1 {[%clk 0:01:47.5]} 16. Bxf1 {[%clk 0:01:51]} 16... dxe5 {[%clk
0:01:38.3]} 17. Nf3 {[%clk 0:01:48.5]} 17... Be6 {[%clk 0:01:08.9]} 18. Bxa6
{[%clk 0:01:41.7]} 18... bxa6 {[%clk 0:01:09.1]} 19. Nxe5 {[%clk 0:01:41.6]}
19... c5 {[%clk 0:00:52.5]} 20. Nd5 {[%clk 0:01:39]} 20... Bxd5 {[%clk
0:00:44.6]} 21. Rxd5 {[%clk 0:01:18.1]} 21... Nf6 {[%clk 0:00:43.9]} 22. Rd1
{[%clk 0:01:09.1]} 22... Re8 {[%clk 0:00:38.2]} 23. Nc6 {[%clk 0:01:02.6]} 23...
Nxe4 {[%clk 0:00:34.4]} 24. Nxe7+ {[%clk 0:01:00.7]} 24... Rxe7 {[%clk
0:00:34.5]} 25. Rd3 {[%clk 0:00:47.3]} 25... Rb7 {[%clk 0:00:17.9]} 26. b3
{[%clk 0:00:47.3]} 26... Rc7 {[%clk 0:00:16.3]} 27. Bf4 {[%clk 0:00:45.5]} 27...
Rc6 {[%clk 0:00:15.6]} 28. Rd7 {[%clk 0:00:45]} 28... c4 {[%clk 0:00:14.1]} 29.
b4 {[%clk 0:00:39.2]} 29... Nc3 {[%clk 0:00:13.4]} 30. a3 {[%clk 0:00:29.9]}
30... Nb5 {[%clk 0:00:13]} 31. a4 {[%clk 0:00:27.5]} 31... Nc3 {[%clk
0:00:13.2]} 32. a5 {[%clk 0:00:25.1]} 32... Na2 {[%clk 0:00:13.2]} 33. Rb7
{[%clk 0:00:21.6]} 33... c3 {[%clk 0:00:13.2]} 34. Be5 {[%clk 0:00:21.2]} 34...
Re6 {[%clk 0:00:12.6]} 35. Bd4 {[%clk 0:00:20.4]} 35... Re2+ {[%clk 0:00:12.4]}
36. Kg1 {[%clk 0:00:20.3]} 36... Rxc2 {[%clk 0:00:12.5]} 37. Rg7+ {[%clk
0:00:19.1]} 37... Kf8 {[%clk 0:00:12.4]} 38. Rxa7 {[%clk 0:00:18.3]} 38... Rd2
{[%clk 0:00:12.4]} 39. Bxc3 {[%clk 0:00:18.2]} 39... Nxc3 {[%clk 0:00:11.9]} 40.
Rxa6 {[%clk 0:00:18.8]} 40... Ne4 {[%clk 0:00:10.9]} 41. b5 {[%clk 0:00:16.9]}
41... Rb2 {[%clk 0:00:08.3]} 42. b6 {[%clk 0:00:17.1]} 42... Kg7 {[%clk
0:00:07.4]} 43. Ra7+ {[%clk 0:00:16.9]} 43... Kh6 {[%clk 0:00:06.8]} 44. b7
{[%clk 0:00:16.5]} 44... Nc5 {[%clk 0:00:06.4]} 45. a6 {[%clk 0:00:15.2]} 45...
Rb6 {[%clk 0:00:06.4]} 46. Ra8 {[%clk 0:00:14.7]} 46... Nxa6 {[%clk 0:00:06.2]}
47. Rxa6 {[%clk 0:00:14.9]} 47... Rxb7 {[%clk 0:00:06.8]} 48. Ra4 {[%clk
0:00:15]} 48... Rb2 {[%clk 0:00:06.9]} 49. Rf4 {[%clk 0:00:14.2]} 49... Kg5
{[%clk 0:00:06.9]} 50. Rf2 {[%clk 0:00:12.4]} 50... Rb1+ {[%clk 0:00:06.5]} 51.
Kg2 {[%clk 0:00:12.6]} 51... h5 {[%clk 0:00:06.9]} 52. Rc2 {[%clk 0:00:12.4]}
52... Kh6 {[%clk 0:00:05.7]} 53. Kf3 {[%clk 0:00:10.8]} 53... Rb3+ {[%clk
0:00:05.8]} 54. Kf2 {[%clk 0:00:10.6]} 54... h4 {[%clk 0:00:05.6]} 55. gxh4
{[%clk 0:00:05.3]} 55... Rxh3 {[%clk 0:00:05.6]} 56. Rc4 {[%clk 0:00:05.9]}
56... Kh5 {[%clk 0:00:06]} 57. Kg2 {[%clk 0:00:06]} 57... Rxh4 {[%clk
0:00:06.3]} 58. Rc5+ {[%clk 0:00:05.2]} 58... g5 {[%clk 0:00:05.5]} 59. Rc8
{[%clk 0:00:05.1]} 59... Ra4 {[%clk 0:00:05.5]} 60. Rc3 {[%clk 0:00:04.4]} 60...
Kh4 {[%clk 0:00:04.2]} 61. Rb3 {[%clk 0:00:04.5]} 61... Ra2+ {[%clk 0:00:03.1]}
62. Kg1 {[%clk 0:00:03.9]} 62... g4 {[%clk 0:00:03.5]} 63. Rc3 {[%clk 0:00:04]}
63... g3 {[%clk 0:00:03.8]} 64. Rc8 {[%clk 0:00:04]} 64... Ra1+ {[%clk
0:00:03.2]} 65. Kg2 {[%clk 0:00:03.9]} 65... Ra2+ {[%clk 0:00:03.6]} 66. Kg1
{[%clk 0:00:04.5]} 66... Ra5 {[%clk 0:00:02.6]} 67. Rh8+ {[%clk 0:00:04.1]}
67... Kg4 {[%clk 0:00:02.9]} 68. Rg8+ {[%clk 0:00:04.5]} 68... Rg5 {[%clk
0:00:02.7]} 69. Rxg5+ {[%clk 0:00:04.7]} 69... Kxg5 {[%clk 0:00:03.3]} 70. Kg2
{[%clk 0:00:05.6]} 70... Kg4 {[%clk 0:00:03.8]} 71. Kg1 {[%clk 0:00:06.2]} 71...
Kf3 {[%clk 0:00:04.1]} 72. Kf1 {[%clk 0:00:05.9]} 72... g2+ {[%clk 0:00:04.3]}
73. Kg1 {[%clk 0:00:06.4]} 73... Kg3 {[%clk 0:00:04.8]} 1/2-1/2

[Event "Late-Titled-Tuesday-Blitz-May-14-2024"]
[Site "Chess.com"]
[Date "2024.05.14"]
[Round "5"]
[White "artin10862"]
[Black "Sanan_Sjugirov"]
[Result "1-0"]
[WhiteElo "2891"]
[BlackElo "3037"]
[TimeControl "180+1"]
[EndTime "14:57:25 PDT"]
[Termination "artin10862 won on time"]

1. Nf3 {[%clk 0:02:59.4]} 1... Nf6 {[%clk 0:02:59.7]} 2. d4 {[%clk 0:02:59]}
2... e6 {[%clk 0:02:59.4]} 3. c4 {[%clk 0:02:56.6]} 3... b6 {[%clk 0:02:57.5]}
4. Nc3 {[%clk 0:02:47.3]} 4... Bb4 {[%clk 0:02:56.8]} 5. Bd2 {[%clk 0:02:45.6]}
5... Bb7 {[%clk 0:02:55.8]} 6. e3 {[%clk 0:02:45.3]} 6... O-O {[%clk 0:02:54.4]}
7. Bd3 {[%clk 0:02:40.3]} 7... d5 {[%clk 0:02:46.4]} 8. cxd5 {[%clk 0:02:38.9]}
8... exd5 {[%clk 0:02:46.2]} 9. Rc1 {[%clk 0:02:39.4]} 9... a6 {[%clk
0:02:40.5]} 10. O-O {[%clk 0:02:38.8]} 10... Bd6 {[%clk 0:02:38.5]} 11. Ne5
{[%clk 0:02:35]} 11... c5 {[%clk 0:02:35.1]} 12. f4 {[%clk 0:02:33.3]} 12... c4
{[%clk 0:02:18.3]} 13. Bb1 {[%clk 0:02:31.5]} 13... b5 {[%clk 0:02:18.5]} 14.
Be1 {[%clk 0:02:28.5]} 14... Ne4 {[%clk 0:02:13.2]} 15. Nxe4 {[%clk 0:02:10.8]}
15... dxe4 {[%clk 0:02:14.1]} 16. b3 {[%clk 0:02:11.5]} 16... cxb3 {[%clk
0:02:01.5]} 17. Qxb3 {[%clk 0:02:11.2]} 17... Qe8 {[%clk 0:01:23.6]} 18. a4
{[%clk 0:02:05]} 18... Nd7 {[%clk 0:00:46.4]} 19. axb5 {[%clk 0:01:42.5]} 19...
axb5 {[%clk 0:00:46]} 20. Qxb5 {[%clk 0:01:42.9]} 20... Nxe5 {[%clk 0:00:39.8]}
21. Qxe8 {[%clk 0:01:21.3]} 21... Nf3+ {[%clk 0:00:39.9]} 22. Rxf3 {[%clk
0:01:14.9]} 22... Rfxe8 {[%clk 0:00:40.8]} 23. Rf2 {[%clk 0:01:12.7]} 23... Ra3
{[%clk 0:00:38.2]} 24. Rb2 {[%clk 0:01:08.7]} 24... Bd5 {[%clk 0:00:31.6]} 25.
Kf2 {[%clk 0:01:08.7]} 25... h6 {[%clk 0:00:25.1]} 26. Bb4 {[%clk 0:01:06.6]}
26... Bxb4 {[%clk 0:00:23.9]} 27. Rxb4 {[%clk 0:01:07.5]} 27... Ra1 {[%clk
0:00:19.1]} 28. Rc5 {[%clk 0:01:04.6]} 28... Ba2 {[%clk 0:00:13.3]} 29. Bc2
{[%clk 0:01:04.5]} 29... Rc1 {[%clk 0:00:07.2]} 30. Ba4 {[%clk 0:01:03.6]} 30...
Rxc5 {[%clk 0:00:05.3]} 31. dxc5 {[%clk 0:01:04.5]} 31... Rc8 {[%clk 0:00:05.2]}
32. c6 {[%clk 0:00:51.1]} 32... Bd5 {[%clk 0:00:05.7]} 33. Rb6 {[%clk
0:00:51.4]} 33... Kf8 {[%clk 0:00:06.2]} 34. Ke2 {[%clk 0:00:49.5]} 34... Ke7
{[%clk 0:00:06.7]} 35. Rb7+ {[%clk 0:00:50]} 35... Kd6 {[%clk 0:00:06]} 36. Rd7+
{[%clk 0:00:47.8]} 36... Kc5 {[%clk 0:00:06.4]} 37. c7 {[%clk 0:00:48.3]} 37...
Be6 {[%clk 0:00:06.5]} 38. Rd4 {[%clk 0:00:42.4]} 38... Bd5 {[%clk 0:00:06.8]}
39. Bc2 {[%clk 0:00:37.5]} 39... f5 {[%clk 0:00:05.7]} 40. g4 {[%clk 0:00:33.6]}
40... g6 {[%clk 0:00:05.5]} 41. gxf5 {[%clk 0:00:27.6]} 41... gxf5 {[%clk
0:00:06.4]} 42. Kf2 {[%clk 0:00:28.3]} 42... Rxc7 {[%clk 0:00:06.7]} 43. Bd1
{[%clk 0:00:29]} 43... Ra7 {[%clk 0:00:05.9]} 44. Bh5 {[%clk 0:00:28.5]} 44...
Ra2+ {[%clk 0:00:05.6]} 45. Kg3 {[%clk 0:00:28.9]} 45... Ra3 {[%clk 0:00:05.8]}
46. Kf2 {[%clk 0:00:29.3]} 46... Ra2+ {[%clk 0:00:06.2]} 47. Be2 {[%clk
0:00:27.1]} 47... Bc6 {[%clk 0:00:02.5]} 48. Ke1 {[%clk 0:00:23.5]} 48... Ra1+
{[%clk 0:00:02.7]} 49. Kf2 {[%clk 0:00:23.7]} 49... Ra2 {[%clk 0:00:03.1]} 50.
Ke1 {[%clk 0:00:19.3]} 50... Ra1+ {[%clk 0:00:02.8]} 51. Rd1 {[%clk 0:00:20]}
51... Ra2 {[%clk 0:00:02.9]} 52. Rd2 {[%clk 0:00:18.4]} 52... Ra1+ {[%clk
0:00:02.9]} 53. Kf2 {[%clk 0:00:19.1]} 53... Bd5 {[%clk 0:00:03.3]} 54. Bf1
{[%clk 0:00:18.4]} 54... Kd6 {[%clk 0:00:02.9]} 55. Bh3 {[%clk 0:00:18.4]} 55...
Rh1 {[%clk 0:00:01.7]} 56. Kg2 {[%clk 0:00:17.7]} 56... Re1 {[%clk 0:00:02.3]}
57. Kf2 {[%clk 0:00:14]} 57... Rh1 {[%clk 0:00:02.9]} 58. Bg2 {[%clk 0:00:10.4]}
58... Ra1 {[%clk 0:00:02.5]} 59. Kg3 {[%clk 0:00:10.1]} 59... Ke6 {[%clk
0:00:02.6]} 60. Bh3 {[%clk 0:00:10.6]} 60... Bc4 {[%clk 0:00:02.7]} 61. Rc2
{[%clk 0:00:09.4]} 61... Ra4 {[%clk 0:00:02.3]} 62. Kh4 {[%clk 0:00:08.8]} 62...
Kf6 {[%clk 0:00:02.3]} 63. Rd2 {[%clk 0:00:09]} 63... Be6 {[%clk 0:00:02.5]} 64.
Kg3 {[%clk 0:00:08.6]} 64... Ra3 {[%clk 0:00:02.9]} 65. Kf2 {[%clk 0:00:09.1]}
65... Ra1 {[%clk 0:00:03.4]} 66. Bf1 {[%clk 0:00:09.7]} 66... Ra3 {[%clk
0:00:03.6]} 67. Rd6 {[%clk 0:00:09.8]} 67... Ra2+ {[%clk 0:00:04]} 68. Kg3
{[%clk 0:00:10.2]} 68... Ke7 {[%clk 0:00:04.4]} 69. Rxe6+ {[%clk 0:00:09.6]}
69... Kxe6 {[%clk 0:00:04.7]} 70. Bc4+ {[%clk 0:00:10.3]} 70... Kf6 {[%clk
0:00:05.5]} 71. Bxa2 {[%clk 0:00:11.2]} 71... Kg6 {[%clk 0:00:06.3]} 72. Kh4
{[%clk 0:00:11.5]} 1-0

[Event "Late-Titled-Tuesday-Blitz-May-14-2024"]
[Site "Chess.com"]
[Date "2024.05.14"]
[Round "5"]
[White "katharinareinecke"]
[Black "BrandonJiang123456"]
[Result "1/2-1/2"]
[WhiteElo "1896"]
[BlackElo "2180"]
[TimeControl "180+1"]
[EndTime "14:57:27 PDT"]
[Termination "Game drawn - insufficient material"]

1. d4 {[%clk 0:03:00.9]} 1... d5 {[%clk 0:02:33.9]} 2. c4 {[%clk 0:02:59.3]}
2... dxc4 {[%clk 0:02:32.8]} 3. Nf3 {[%clk 0:02:56.6]} 3... c6 {[%clk
0:02:21.1]} 4. g3 {[%clk 0:02:52.4]} 4... e5 {[%clk 0:02:18.9]} 5. Nxe5 {[%clk
0:02:45.1]} 5... Be6 {[%clk 0:02:10.9]} 6. Bg2 {[%clk 0:02:42.9]} 6... Bd6
{[%clk 0:02:04]} 7. O-O {[%clk 0:02:41.3]} 7... Nf6 {[%clk 0:01:50.3]} 8. Na3
{[%clk 0:02:26.6]} 8... Bxe5 {[%clk 0:01:41]} 9. dxe5 {[%clk 0:02:25.5]} 9...
Qxd1 {[%clk 0:01:40]} 10. Rxd1 {[%clk 0:02:25.1]} 10... Nfd7 {[%clk 0:01:40.4]}
11. f4 {[%clk 0:02:17.3]} 11... Na6 {[%clk 0:01:28.5]} 12. e4 {[%clk 0:02:15.9]}
12... g6 {[%clk 0:01:22.6]} 13. Be3 {[%clk 0:02:05]} 13... Nb4 {[%clk
0:01:20.6]} 14. Bf1 {[%clk 0:01:53.8]} 14... b5 {[%clk 0:01:19.3]} 15. Rd2
{[%clk 0:01:42.2]} 15... Ke7 {[%clk 0:01:15.1]} 16. Nb1 {[%clk 0:01:37.8]} 16...
a5 {[%clk 0:01:04.2]} 17. a3 {[%clk 0:01:37.5]} 17... Na6 {[%clk 0:01:03.8]} 18.
Nc3 {[%clk 0:01:35.7]} 18... Nac5 {[%clk 0:01:03.5]} 19. Rad1 {[%clk 0:01:07.9]}
19... b4 {[%clk 0:01:00.5]} 20. axb4 {[%clk 0:01:01.8]} 20... axb4 {[%clk
0:01:00.3]} 21. Ne2 {[%clk 0:00:57]} 21... Nxe4 {[%clk 0:00:59.6]} 22. Rc2
{[%clk 0:00:51.2]} 22... b3 {[%clk 0:00:51.8]} 23. Rcc1 {[%clk 0:00:50.3]} 23...
Ra2 {[%clk 0:00:52]} 24. Nd4 {[%clk 0:00:45.2]} 24... Rxb2 {[%clk 0:00:48.1]}
25. Nxc6+ {[%clk 0:00:44.8]} 25... Ke8 {[%clk 0:00:44.3]} 26. Bxc4 {[%clk
0:00:40.4]} 26... Bxc4 {[%clk 0:00:42.7]} 27. Rxc4 {[%clk 0:00:40]} 27... Rc2
{[%clk 0:00:43.1]} 28. Rxc2 {[%clk 0:00:35]} 28... bxc2 {[%clk 0:00:42.1]} 29.
Rc1 {[%clk 0:00:35.1]} 29... Kf8 {[%clk 0:00:39]} 30. Rxc2 {[%clk 0:00:33.3]}
30... Kg7 {[%clk 0:00:39.3]} 31. Bd4 {[%clk 0:00:26.9]} 31... Rc8 {[%clk
0:00:22.7]} 32. e6+ {[%clk 0:00:26]} 32... Ndf6 {[%clk 0:00:22.6]} 33. Bxf6+
{[%clk 0:00:25.8]} 33... Kxf6 {[%clk 0:00:19.5]} 34. exf7 {[%clk 0:00:23.5]}
34... Nd6 {[%clk 0:00:17.3]} 35. Nd4 {[%clk 0:00:23.2]} 35... Rf8 {[%clk
0:00:14.7]} 36. Rc7 {[%clk 0:00:21.5]} 36... Rxf7 {[%clk 0:00:12.5]} 37. Rxf7+
{[%clk 0:00:21.1]} 37... Nxf7 {[%clk 0:00:11.8]} 38. Nf3 {[%clk 0:00:21.4]}
38... Nd6 {[%clk 0:00:12.1]} 39. Kf2 {[%clk 0:00:21.7]} 39... Ne4+ {[%clk
0:00:11.3]} 40. Ke3 {[%clk 0:00:22.2]} 40... Nd6 {[%clk 0:00:11.8]} 41. h3
{[%clk 0:00:22.1]} 41... h5 {[%clk 0:00:11.7]} 42. Nd4 {[%clk 0:00:20.1]} 42...
Nc4+ {[%clk 0:00:11.3]} 43. Kf3 {[%clk 0:00:20.1]} 43... Nd2+ {[%clk 0:00:10.9]}
44. Kf2 {[%clk 0:00:19.3]} 44... Ne4+ {[%clk 0:00:10.5]} 45. Kf3 {[%clk
0:00:19.9]} 45... Nd6 {[%clk 0:00:10.4]} 46. Nc6 {[%clk 0:00:19.3]} 46... Nf5
{[%clk 0:00:09.8]} 47. Ne5 {[%clk 0:00:19.2]} 47... Ne7 {[%clk 0:00:08.6]} 48.
Nd3 {[%clk 0:00:18.8]} 48... Nc6 {[%clk 0:00:05.4]} 49. Nf2 {[%clk 0:00:19]}
49... Nd4+ {[%clk 0:00:05.8]} 50. Ke3 {[%clk 0:00:19.3]} 50... Nf5+ {[%clk
0:00:06.3]} 51. Kf3 {[%clk 0:00:19.5]} 51... Nd4+ {[%clk 0:00:06.7]} 52. Kg2
{[%clk 0:00:19.9]} 52... Nf5 {[%clk 0:00:07]} 53. Ne4+ {[%clk 0:00:19.7]} 53...
Kg7 {[%clk 0:00:06]} 54. Ng5 {[%clk 0:00:19.9]} 54... Ne3+ {[%clk 0:00:05.9]}
55. Kf3 {[%clk 0:00:19.5]} 55... Nf5 {[%clk 0:00:06.2]} 56. Ne6+ {[%clk
0:00:19.6]} 56... Kf6 {[%clk 0:00:05.5]} 57. Ng5 {[%clk 0:00:19.6]} 57... Nd4+
{[%clk 0:00:05.4]} 58. Ke4 {[%clk 0:00:19.1]} 58... Nf5 {[%clk 0:00:06.2]} 59.
g4 {[%clk 0:00:18.8]} 59... hxg4 {[%clk 0:00:06.7]} 60. hxg4 {[%clk 0:00:19.3]}
60... Ng3+ {[%clk 0:00:07.1]} 61. Kf3 {[%clk 0:00:19.1]} 61... Nf1 {[%clk
0:00:07.7]} 62. Ne4+ {[%clk 0:00:19.1]} 62... Kg7 {[%clk 0:00:06.1]} 63. Kf2
{[%clk 0:00:19.4]} 63... Nh2 {[%clk 0:00:06.3]} 64. Kg3 {[%clk 0:00:19.3]} 64...
Nf1+ {[%clk 0:00:06.3]} 65. Kf2 {[%clk 0:00:19.5]} 65... Nh2 {[%clk 0:00:06]}
66. g5 {[%clk 0:00:18.8]} 66... Ng4+ {[%clk 0:00:05.1]} 67. Kg3 {[%clk
0:00:19.3]} 67... Ne3 {[%clk 0:00:05.2]} 68. Nf2 {[%clk 0:00:19.3]} 68... Nf5+
{[%clk 0:00:05.5]} 69. Kf3 {[%clk 0:00:19.2]} 69... Ne7 {[%clk 0:00:05.8]} 70.
Ng4 {[%clk 0:00:19.3]} 70... Nf5 {[%clk 0:00:06.2]} 71. Ne5 {[%clk 0:00:19.5]}
71... Nh4+ {[%clk 0:00:05.9]} 72. Kg4 {[%clk 0:00:19.3]} 72... Nf5 {[%clk
0:00:06.5]} 73. Nxg6 {[%clk 0:00:19.6]} 73... Kxg6 {[%clk 0:00:05.4]} 74. Kf3
{[%clk 0:00:19.9]} 74... Ne7 {[%clk 0:00:05.9]} 75. Ke4 {[%clk 0:00:20.3]} 75...
Nf5 {[%clk 0:00:06.5]} 76. Ke5 {[%clk 0:00:20.7]} 76... Nh4 {[%clk 0:00:07]} 77.
Ke6 {[%clk 0:00:20]} 77... Nf5 {[%clk 0:00:07.4]} 78. Ke5 {[%clk 0:00:20.2]}
78... Nh4 {[%clk 0:00:08]} 79. Ke6 {[%clk 0:00:19.3]} 79... Nf5 {[%clk
0:00:08.2]} 80. Kd7 {[%clk 0:00:17.7]} 80... Ng3 {[%clk 0:00:08.6]} 81. Kd6
{[%clk 0:00:17.4]} 81... Kf5 {[%clk 0:00:09]} 82. Ke7 {[%clk 0:00:16.1]} 82...
Nh5 {[%clk 0:00:09.5]} 83. Kf7 {[%clk 0:00:15.9]} 83... Kxf4 {[%clk 0:00:09.6]}
84. g6 {[%clk 0:00:16.4]} 84... Kf5 {[%clk 0:00:09.3]} 85. g7 {[%clk 0:00:16.7]}
85... Nxg7 {[%clk 0:00:09.8]} 1/2-1/2